bitfinex/quotes_ETHUSD_20241101
["timestamp","ask_amount","ask_price","bid_price","bid_amount"]
[1730469612032,3.0,2571.9,2570.7,3.96774935]
[1730469612033,3.88907,2571.4,2570.7,3.96774935]
[1730469612273,3.88893,2571.4,2570.7,3.88986]
[1730469612473,3.88893,2571.4,2570.8,0.55825494]
[1730469612632,1.6327,2572.0,2570.8,0.55825494]
[1730469612829,3.8882,2571.9,2570.9,0.07778696]
[1730469613063,3.8882,2571.9,2570.7,3.88992]
[1730469613064,3.88848,2571.7,2571.1,3.88935]
[1730469613227,3.88835,2571.8,2571.1,3.88935]
[1730469613431,1.6327,2572.0,2571.2,0.4667117]
[1730469613680,5.45298,2572.4,2571.3,5.47124]
[1730469613833,5.45298,2572.4,2571.4,0.07776916]
[1730469614034,5.45298,2572.4,2571.5,3.88868]
[1730469614035,3.88796,2572.1,2571.5,3.88868]
[1730469614353,3.88779,2572.2,2571.5,0.07776916]
[1730469614551,3.88807,2572.0,2571.5,0.07776916]
[1730469614861,3.88717,2572.6,2571.9,3.88816]
[1730469615096,1.5304,2572.9,2572.0,0.46656764]
[1730469615097,3.88752,2572.4,2572.0,0.46656764]
[1730469615246,7.77446,2572.6,2572.0,4.276756]
[1730469615448,3.8869,2572.8,2572.2,3.88769]
[1730469615686,3.88699,2572.7,2572.2,3.88771]
[1730469615978,3.88591,2573.4,2572.3,0.62774473]
[1730469616177,3.88591,2573.4,2572.9,3.88664]
[1730469616476,1.5353,2573.7,2573.1,3.88626]
[1730469616682,3.88524,2573.9,2573.3,3.88602]
[1730469616982,3.88295,2575.4,2573.3,3.88602]
[1730469616983,3.88357,2575.0,2574.2,3.88465]
[1730469617137,3.88357,2575.0,2574.3,0.07767923]
[1730469617338,3.8844,2574.4,2573.8,3.88518]
[1730469617563,1.5756,2575.2,2573.9,3.88504]
[1730469617747,3.88404,2574.7,2574.0,3.9625795]
[1730469618077,3.88381,2574.8,2574.2,3.88462]
[1730469618282,3.88381,2574.8,2574.2,4.273082]
[1730469618483,0.37648837,2575.2,2573.9,1.5433]
[1730469618641,3.88362,2575.0,2574.2,3.88461]
[1730469618836,3.8841,2574.6,2574.3,0.07768198]
[1730469619161,1.5292,2575.1,2573.5,5.48652]
[1730469619162,3.0,2574.9,2573.5,5.48652]
[1730469619372,3.88504,2574.0,2573.6,0.07770101]
[1730469619541,3.88504,2574.0,2573.5,1.6009]
[1730469619737,3.88543,2573.8,2573.2,3.88614]
[1730469619958,3.8848,2574.2,2573.5,3.88561]
[1730469620292,0.37648837,2575.2,2573.7,1.6223]
[1730469620442,3.8841,2574.6,2573.8,3.88521]
[1730469620784,3.88392,2574.8,2574.1,3.88475]
[1730469620941,0.388392,2574.8,2573.7,1.6223]
[1730469621140,3.88449,2574.4,2573.7,1.6223]
[1730469621380,3.88449,2574.4,2573.7,5.50765]
[1730469621587,3.88449,2574.4,2573.8,0.07769488]
[1730469621736,3.88468,2574.3,2573.8,0.07769488]
[1730469621941,3.88479,2574.2,2573.8,0.07769443]
[1730469622184,3.8841,2574.6,2573.8,4.44376744]
[1730469622372,3.88428,2574.5,2574.0,3.88491]
[1730469622680,1.6588,2575.3,2573.5,3.88567]
[1730469622681,3.885,2574.0,2573.5,3.88567]
[1730469622983,3.86605,2574.1,2573.5,3.88567]
[1730469623275,3.88488,2574.1,2573.6,1.6508]
[1730469623482,3.88394,2574.7,2573.6,1.6508]
[1730469623654,3.88524,2573.9,2573.1,5.53705]
[1730469623855,3.885,2574.1,2573.5,3.88565]
[1730469624066,3.88404,2574.7,2573.2,3.88608]
[1730469624067,3.88527,2573.9,2573.2,3.88608]
[1730469624269,3.88562,2573.6,2573.1,1.6508]
[1730469624451,3.88602,2573.4,2572.8,5.441031]
[1730469624666,3.88601,2573.4,2572.9,3.88663]
[1730469624846,1.5947,2574.2,2573.0,0.07772347]
[1730469625048,3.88541,2573.8,2573.2,7.77229]
[1730469625288,3.88541,2573.8,2573.2,7.77222]
[1730469625674,3.885,2574.0,2573.4,5.44519]
[1730469625675,7.77011,2574.0,2573.4,5.44519]
[1730469625980,3.885,2574.0,2573.4,5.4452]
[1730469626187,3.88515,2573.9,2573.4,5.44511]
[1730469626403,0.777015,2573.9,2573.4,5.44519]
[1730469626674,3.88525,2573.9,2573.4,1.5593]
[1730469626884,3.88569,2573.6,2573.0,5.49661]
[1730469627244,3.88538,2573.8,2573.3,3.88604]
[1730469627454,3.88516,2573.9,2573.4,3.96360563]
[1730469627657,3.88531,2573.8,2573.4,0.07771563]
[1730469627862,3.88546,2573.7,2573.1,3.88627]
[1730469628083,3.88524,2573.9,2573.3,3.88597]
[1730469628268,3.88524,2573.9,2573.0,1.6102]
[1730469628269,3.88575,2573.6,2573.0,5.49668]
[1730469628451,3.886,2573.4,2573.0,1.6102]
[1730469629394,3.8859,2573.4,2572.4,0.05828487]
[1730469629545,0.50043452,2573.5,2572.5,3.88719]
[1730469629546,3.8864,2573.1,2572.5,3.88719]
[1730469629743,3.88722,2572.6,2572.4,0.05828487]
[1730469630190,3.88726,2572.5,2572.4,0.05828487]
[1730469630744,6.88726,2572.5,2572.4,0.05828487]
[1730469631788,3.88802,2572.1,2571.6,0.07776308]
[1730469631946,3.0,2572.5,2571.6,0.07776308]
[1730469631947,3.88733,2572.5,2571.8,3.88822]
[1730469632148,7.7697,2574.1,2573.2,1.5825]
[1730469632471,3.88515,2573.9,2573.4,3.88583]
[1730469632681,1.62705,2574.2,2573.5,3.88575]
[1730469632682,3.88508,2574.0,2573.5,3.88575]
[1730469632859,3.88508,2574.0,2573.2,5.46871]
[1730469632860,3.8854,2573.8,2573.2,5.46871]
[1730469633183,3.88548,2573.7,2573.2,1.5825]
[1730469633344,3.88548,2573.7,2573.2,5.4687]
[1730469633544,3.88349,2575.1,2573.5,3.88573]
[1730469633749,3.88524,2573.9,2573.3,3.88599]
[1730469633980,3.88543,2573.8,2573.2,1.5825]
[1730469634189,3.88576,2573.5,2572.9,3.88659]
[1730469634361,3.88602,2573.4,2572.8,1.6077]
[1730469634564,3.8865,2573.1,2572.8,1.6077]
[1730469634756,3.8867,2572.9,2572.4,1.542]
[1730469634952,6.88574,2573.6,2572.4,1.542]
[1730469634953,3.88682,2572.8,2572.5,0.542945]
[1730469635150,3.88682,2572.8,2572.4,1.542]
[1730469635151,3.388574,2573.5,2572.6,0.07773993]
[1730469635355,3.88668,2572.9,2572.4,1.542]
[1730469635661,3.88647,2573.1,2572.4,5.42932]
[1730469635861,3.88667,2572.9,2572.4,5.42932]
[1730469636061,3.88684,2572.8,2572.4,1.542]
[1730469636261,1.5333,2573.2,2572.5,0.07773993]
[1730469636476,3.88704,2572.7,2572.2,3.88761]
[1730469636677,7.77272,2573.1,2572.1,1.6539]
[1730469636987,3.88714,2572.6,2572.2,0.07774477]
[1730469637158,3.88698,2572.7,2572.1,5.54162]
[1730469637359,3.88698,2572.7,2572.2,0.554162]
[1730469637560,3.88711,2572.6,2572.1,1.73164485]
[1730469637764,3.88772,2572.2,2571.8,1.6347]
[1730469637962,4.5333,2573.2,2571.8,1.6347]
[1730469637963,3.88749,2572.4,2571.9,0.07775724]
[1730469638276,3.88757,2572.3,2571.8,1.6347]
[1730469638463,3.88798,2572.1,2571.3,1.513]
[1730469638790,4.6642,2572.1,2571.1,1.55532]
[1730469639091,3.88878,2571.5,2571.1,5.44468]
[1730469639399,7.7766,2571.9,2571.3,3.88898]
[1730469639690,3.8885,2571.7,2571.4,0.39667574]
[1730469639862,3.8885,2571.7,2571.2,3.88915]
[1730469640062,3.88827,2571.9,2571.4,3.88884]
[1730469640274,5.55209,2572.1,2570.9,3.068524]
[1730469640480,5.55209,2572.1,2571.0,0.07778166]
[1730469640690,3.88927,2571.2,2570.9,3.068524]
[1730469640908,3.88941,2571.1,2570.9,2.2088504]
[1730469641052,3.88941,2571.1,2570.6,5.55093678]
[1730469641248,3.88927,2571.2,2570.7,3.88998]
[1730469641490,3.88941,2571.1,2570.7,0.07779073]
[1730469641804,3.88927,2571.2,2570.6,0.05830678]
[1730469641805,3.88999,2570.7,2570.6,0.05830678]
[1730469642156,3.88999,2570.7,2570.3,1.55585]
[1730469642157,3.8885,2570.4,2570.1,1.07450678]
[1730469642622,3.89061,2570.3,2569.8,3.89123]
[1730469642784,3.8902,2570.6,2569.9,0.5447482]
[1730469643095,3.89038,2570.5,2569.9,4.51373197]
[1730469643253,3.8907,2570.3,2569.9,0.5447482]
[1730469643651,3.89077,2570.2,2569.9,0.5447482]
[1730469643889,3.8907,2570.3,2569.7,3.8915]
[1730469644055,3.8907,2570.3,2569.6,5.447882]
[1730469644256,3.89092,2570.1,2569.6,3.89157]
[1730469645089,3.89092,2570.1,2569.5,1.94332158]
[1730469645369,3.89165,2569.6,2569.5,1.94332158]
[1730469645807,3.89151,2569.7,2569.5,1.94332158]
[1730469646011,3.89165,2569.6,2569.5,1.94332158]
[1730469646211,3.89195,2569.4,2568.9,1.5616]
[1730469646411,3.89195,2569.4,2568.6,1.5616]
[1730469646813,8.55735,2569.4,2569.3,2.03168797]
[1730469647109,9.802267,2569.4,2569.3,7.97e-06]
[1730469647709,10.352267,2569.4,2569.3,7.97e-06]
[1730469647907,10.352267,2569.4,2567.9,1.5616]
[1730469647908,3.8938,2568.2,2567.9,1.5616]
[1730469648109,3.89394,2568.1,2567.5,1.558]
[1730469648349,5.40006,2568.6,2567.6,0.07788882]
[1730469648524,5.40006,2568.6,2567.9,3.89411]
[1730469648525,3.89326,2568.6,2567.9,3.89411]
[1730469648724,3.89326,2568.6,2568.0,0.389411]
[1730469648967,3.89276,2568.9,2568.0,0.389411]
[1730469649167,3.89333,2568.5,2568.0,0.389411]
[1730469649338,3.89377,2568.3,2567.6,3.89458]
[1730469649542,3.89314,2568.7,2568.1,3.89381]
[1730469650237,3.89314,2568.7,2567.9,3.89422]
[1730469650442,1.6273,2569.0,2568.0,0.389422]
[1730469650647,1.6273,2569.0,2567.8,3.89428]
[1730469650825,3.89357,2568.4,2567.8,3.89437]
[1730469651225,3.89291,2568.8,2567.5,1.558]
[1730469651448,3.87501,2568.8,2567.8,3.89436]
[1730469651664,1.6273,2569.0,2567.6,3.89461]
[1730469651665,3.89379,2568.2,2567.6,3.89461]
[1730469651963,3.89307,2568.7,2567.5,1.558]
[1730469651964,3.89433,2567.9,2567.5,1.558]
[1730469652264,3.89441,2567.8,2567.0,3.171393]
[1730469652437,1.641,2568.3,2567.3,3.89514]
[1730469652438,3.89423,2567.9,2567.3,3.89514]
[1730469652671,3.89423,2567.9,2567.1,4.2248771]
[1730469652844,3.89423,2567.9,2567.3,3.89499]
[1730469653054,3.89482,2567.6,2567.1,0.3295271]
[1730469653257,3.89377,2568.2,2567.1,3.89535]
[1730469653258,3.89457,2567.7,2567.1,3.89535]
[1730469653663,3.89469,2567.6,2567.0,3.89544]
[1730469653959,3.89491,2567.5,2566.9,0.123878]
[1730469654157,3.89444,2567.8,2566.9,0.123878]
[1730469654369,3.89417,2568.0,2567.4,3.89484]
[1730469654652,3.89432,2567.9,2567.4,5.822124]
[1730469654945,3.89432,2567.9,2567.3,3.89509]
[1730469655254,3.89453,2567.7,2567.2,3.8952]
[1730469655568,3.89432,2567.9,2567.2,7.79039]
[1730469655770,3.89432,2567.9,2567.3,3.89513]
[1730469656069,3.89393,2568.1,2567.6,3.89456]
[1730469656367,3.89357,2568.4,2567.7,3.89453]
[1730469656576,3.89382,2568.2,2567.7,3.89453]
[1730469656773,3.89382,2568.2,2567.7,3.89448]
[1730469656927,7.78773,2568.2,2567.7,3.89444]
[1730469657127,3.89382,2568.2,2567.5,3.89472]
[1730469657452,3.89382,2568.2,2567.7,3.89445]
[1730469657756,3.89447,2567.8,2567.2,3.89518]
[1730469657928,3.89447,2567.8,2567.1,3.89534]
[1730469658129,3.89469,2567.6,2566.9,5.557328]
[1730469658329,3.89469,2567.6,2566.9,6.1130608]
[1730469658562,1.5566,2567.7,2567.1,3.8953]
[1730469658737,1.5566,2567.7,2567.2,3.8952]
[1730469658943,3.89443,2567.8,2567.2,3.8952]
[1730469659273,3.0,2568.3,2567.3,4.67409]
[1730469659274,3.89408,2568.0,2567.3,4.67409]
[1730469659473,3.89449,2567.8,2567.2,3.89525]
[1730469659769,3.89449,2567.8,2567.1,3.89537]
[1730469659770,3.89471,2567.6,2567.1,3.89542]
[1730469660130,3.89418,2568.0,2566.9,2.2174108]
[1730469660334,3.89418,2568.0,2567.5,3.89481]
[1730469660675,3.89397,2568.1,2567.5,7.73957]
[1730469660964,3.89397,2568.1,2567.0,3.89553]
[1730469660965,3.89456,2567.7,2567.1,3.89531]
[1730469661170,3.89408,2568.0,2567.3,3.89513]
[1730469661351,3.89431,2567.9,2567.3,3.89503]
[1730469661560,3.89431,2567.9,2567.1,3.89534]
[1730469661561,5.52075,2568.3,2567.7,3.89444]
[1730469661732,5.52073,2568.3,2567.7,3.89444]
[1730469661938,3.89289,2568.8,2568.3,3.89362]
[1730469662150,3.89289,2568.8,2568.3,7.78713]
[1730469662350,5.49795,2569.0,2568.5,3.89331]
[1730469662673,3.89233,2569.2,2568.6,3.89313]
[1730469662842,5.49736,2569.4,2568.9,3.89263]
[1730469663047,3.89206,2569.4,2568.9,3.89262]
[1730469663249,4.670422,2569.4,2568.4,1.5344]
[1730469663449,3.89175,2569.6,2569.1,3.89239]
[1730469663684,3.89157,2569.7,2569.1,3.8924]
[1730469663836,5.58899801,2569.8,2569.2,3.89211]
[1730469664053,3.94989801,2569.8,2569.3,3.89203]
[1730469664260,3.94989801,2569.8,2569.0,3.89254]
[1730469664261,3.8915,2569.7,2569.0,3.89254]
[1730469664589,3.89235,2569.2,2568.7,5.55083]
[1730469664796,3.89311,2568.7,2568.3,1.6579]
[1730469665085,3.89326,2568.6,2568.1,3.89384]
[1730469665258,3.89317,2568.6,2568.1,3.89384]
[1730469665456,3.89317,2568.6,2568.1,3.89391]
[1730469665771,7.78596,2568.8,2568.2,3.89376]
[1730469665973,3.89315,2568.7,2568.1,3.89391]
[1730469666288,7.78629,2568.7,2568.1,3.89391]
[1730469666594,3.89309,2568.7,2567.9,3.89408]
[1730469666750,1.5766,2568.9,2567.7,3.89442]
[1730469666751,0.389309,2568.6,2567.7,3.89442]
[1730469666943,1.5766,2568.9,2568.3,3.8936]
[1730469666944,3.89297,2568.8,2568.3,3.8936]
[1730469667158,1.5766,2569.3,2568.5,1.5919]
[1730469667369,3.07852475,2570.3,2568.5,1.5919]
[1730469667370,3.89204,2569.4,2568.8,3.89284]
[1730469667669,3.89175,2569.6,2568.5,1.5919]
[1730469667878,1.5306,2569.7,2569.2,3.89224]
[1730469668051,0.05842801,2569.8,2569.4,3.89191]
[1730469668268,3.89151,2569.7,2569.2,5.54094]
[1730469668786,0.05842801,2569.8,2569.5,3.89179]
[1730469668963,0.05842801,2569.8,2569.2,1.6487]
[1730469668964,3.94987801,2569.8,2569.2,5.54082]
[1730469669161,3.89159,2569.7,2569.2,5.54082]
[1730469669374,3.89159,2569.7,2569.0,7.78488]
[1730469669678,3.89159,2569.7,2568.9,1.6461]
[1730469669679,0.7841468,2569.7,2568.9,1.6461]
[1730469669992,3.89211,2569.3,2568.8,3.89276]
[1730469670215,3.94980801,2569.8,2568.5,1.6461]
[1730469670485,3.89235,2569.2,2568.2,1.6461]
[1730469670697,3.89206,2569.4,2568.9,3.89261]
[1730469670861,0.05842801,2569.8,2569.5,3.89167]
[1730469671053,3.94977801,2569.8,2569.1,3.89232]
[1730469671385,0.05842801,2569.8,2569.3,3.89209]
[1730469671691,0.05842801,2569.8,2569.6,3.89163]
[1730469671988,3.94978801,2569.8,2569.3,3.89207]
[1730469672186,3.94978801,2569.8,2569.2,3.89216]
[1730469672347,3.89169,2569.6,2568.9,5.55261]
[1730469672547,3.89166,2569.6,2569.0,3.89256]
[1730469672793,7.78432,2569.3,2568.8,3.89279]
[1730469672963,3.89211,2569.3,2568.8,3.89279]
[1730469673294,3.89241,2569.1,2568.5,1.5291]
[1730469673467,0.389211,2569.3,2568.2,3.89367]
[1730469673789,0.389211,2569.3,2567.0,1.17690922]
[1730469673790,3.89421,2568.0,2567.4,3.8949]
[1730469674006,3.89431,2567.9,2567.2,1.5608]
[1730469674291,3.89431,2567.9,2567.3,3.89512]
[1730469674479,7.78869,2567.9,2567.3,3.89512]
[1730469674690,3.89431,2567.9,2567.4,3.89496]
[1730469674872,1.534,2568.0,2567.4,3.89496]
[1730469675185,1.534,2568.0,2567.5,3.89482]
[1730469675430,3.89433,2567.9,2567.3,3.895]
[1730469675644,3.89441,2567.8,2567.2,5.45598]
[1730469675796,3.89425,2567.9,2567.4,3.89491]
[1730469676191,5.42815,2568.0,2567.4,3.89497]
[1730469676601,7.78774,2568.2,2567.2,1.5608]
[1730469676804,4.672644,2568.2,2567.6,3.8946]
[1730469677029,3.89392,2568.1,2567.4,3.89489]
[1730469677207,3.89392,2568.1,2567.5,3.89483]
[1730469677404,0.778774,2568.2,2567.7,3.89445]
[1730469677619,3.89372,2568.3,2567.7,3.89445]
[1730469677827,5.43032,2568.5,2567.7,3.89445]
[1730469677828,3.89347,2568.4,2567.7,3.89445]
[1730469677995,5.43032,2568.5,2567.9,3.89415]
[1730469678204,6.8931,2568.7,2567.8,1.6448]
[1730469678205,3.8931,2568.7,2567.8,1.6448]
[1730469678501,3.8937,2568.3,2567.8,1.6448]
[1730469678837,3.89363,2568.3,2567.8,0.11]
[1730469679049,3.89351,2568.4,2567.9,3.89415]
[1730469679352,3.89341,2568.5,2568.0,3.89406]
[1730469680050,3.89341,2568.5,2567.9,3.89419]
[1730469680051,3.8935,2568.4,2567.9,3.89419]
[1730469680280,3.0,2568.8,2567.9,3.89423]
[1730469680430,7.78685,2568.5,2567.9,3.89413]
[1730469680620,3.89347,2568.4,2567.9,3.89413]
[1730469680954,3.0,2568.6,2567.8,0.11]
[1730469681115,1.5523,2568.4,2567.8,0.11]
[1730469681317,3.89423,2567.9,2567.8,0.11]
[1730469681517,3.89409,2568.0,2567.8,0.11]
[1730469681749,3.89423,2567.9,2567.8,0.11]
[1730469682160,3.89409,2568.0,2567.8,0.11]
[1730469682360,3.89423,2567.9,2567.8,0.11]
[1730469682656,7.673062,2567.9,2567.8,0.11]
[1730469683415,6.89423,2567.9,2567.8,0.11]
[1730469683613,3.89423,2567.9,2567.8,0.11]
[1730469683819,4.738192,2568.3,2567.8,0.11]
[1730469684052,1.5523,2568.4,2567.8,0.11]
[1730469684239,3.89362,2568.3,2567.8,0.11]
[1730469684746,3.89343,2568.5,2568.0,3.89404]
[1730469684952,3.89309,2568.7,2568.1,7.78766]
[1730469685256,5.47539,2568.8,2568.2,3.89377]
[1730469685553,5.47539,2568.8,2567.8,4.77729696]
[1730469685554,3.89362,2568.4,2567.9,3.89414]
[1730469685754,3.89362,2568.4,2567.8,0.11]
[1730469685955,3.89408,2568.0,2567.8,0.11]
[1730469686143,6.89423,2567.9,2567.8,0.11]
[1730469687959,8.47383,2567.9,2567.8,0.11]
[1730469688156,8.47383,2567.9,2566.9,0.89682496]
[1730469688157,3.89559,2567.0,2566.9,0.89682496]
[1730469688364,5.47859,2567.0,2566.9,0.123878]
[1730469688548,8.47859,2567.0,2566.9,0.123878]
[1730469688744,9.715995,2567.0,2566.9,0.123878]
[1730469689446,10.265995,2567.0,2566.6,0.05841999]
[1730469689676,7.44605,2566.7,2566.6,0.05841999]
[1730469690000,6.89605,2566.7,2566.6,0.05841999]
[1730469690351,3.0,2566.4,2565.8,3.89741]
[1730469690701,3.8965,2566.4,2565.7,0.77294696]
[1730469690851,3.8965,2566.4,2565.4,0.77294696]
[1730469690852,6.89686,2566.2,2565.4,0.77294696]
[1730469691048,3.0,2565.9,2565.4,0.77294696]
[1730469691467,3.89774,2565.6,2565.3,0.77294696]
[1730469691848,3.0,2565.9,2565.4,3.89792]
[1730469692054,3.3,2566.4,2565.5,3.89779]
[1730469692292,3.0,2566.0,2565.5,3.89779]
[1730469692493,6.89712,2566.0,2565.5,3.89779]
[1730469692808,0.3,2566.4,2565.6,3.89769]
[1730469693002,5.47507,2566.5,2565.8,3.89734]
[1730469693157,3.89616,2566.7,2565.9,3.89714]
[1730469693353,1.5014,2566.9,2565.9,3.89712]
[1730469693675,3.89653,2566.4,2565.9,3.89712]
[1730469693882,3.89631,2566.6,2566.0,3.89697]
[1730469694093,3.896,2566.8,2565.8,3.89741]
[1730469694419,1.5014,2566.9,2566.1,3.89685]
[1730469694420,3.0,2566.6,2566.1,3.89685]
[1730469694901,1.5014,2566.9,2566.3,3.89655]
[1730469695211,1.5014,2566.9,2565.9,0.389741]
[1730469695212,3.8957,2567.0,2566.5,3.89626]
[1730469695372,3.8957,2567.0,2566.3,5.41526]
[1730469695571,3.89597,2566.8,2566.3,5.41535]
[1730469695822,3.89574,2566.9,2566.3,5.41525]
[1730469696176,3.8958,2566.9,2566.5,3.89635]
[1730469696478,3.89617,2566.7,2566.1,3.89687]
[1730469696678,3.89582,2566.9,2566.0,1.5709]
[1730469696904,3.89582,2566.9,2566.2,3.89681]
[1730469697092,7.79169,2566.9,2566.2,3.89681]
[1730469697295,1.6542,2567.2,2566.0,5.46799]
[1730469697499,3.89658,2566.4,2565.6,5.43591]
[1730469697672,1.5553,2566.6,2565.6,1.5382]
[1730469697673,3.89683,2566.2,2565.6,1.5382]
[1730469697878,3.89703,2566.1,2565.6,1.5382]
[1730469698085,3.89718,2566.0,2565.4,3.89793]
[1730469698382,3.89703,2566.1,2565.4,3.89793]
[1730469698709,3.89689,2566.2,2565.5,3.89775]
[1730469698922,3.89699,2566.1,2565.5,7.79553]
[1730469699126,3.0,2566.3,2565.4,3.89802]
[1730469699293,5.4515,2566.6,2565.9,3.89715]
[1730469699496,1.5553,2566.6,2565.5,3.0]
[1730469699819,1.5553,2566.6,2566.0,3.89702]
[1730469700228,1.5553,2566.6,2566.1,3.89687]
[1730469700391,6.89586,2566.9,2566.1,3.89687]
[1730469700392,3.89596,2566.8,2566.2,3.89673]
[1730469700715,6.89586,2566.9,2566.2,3.89671]
[1730469700929,3.89597,2566.8,2566.2,3.89671]
[1730469701287,3.89574,2566.9,2566.2,3.89671]
[1730469701491,4.5625,2567.0,2566.4,3.89646]
[1730469701693,4.5625,2567.0,2566.5,3.89633]
[1730469701897,4.5625,2567.0,2565.9,1.62]
[1730469701898,4.5625,2567.0,2566.2,3.89668]
[1730469702125,4.5625,2567.0,2566.5,3.89627]
[1730469702328,3.89525,2567.3,2566.5,3.89626]
[1730469702489,7.7908,2567.2,2566.4,5.43002]
[1730469702811,1.6448,2567.4,2566.7,3.89592]
[1730469702812,5.53989,2567.4,2566.7,3.89592]
[1730469703127,3.89476,2567.6,2566.9,3.89567]
[1730469703434,5.49878,2567.8,2567.1,3.89536]
[1730469703435,3.89461,2567.7,2567.1,3.89536]
[1730469703618,3.89521,2567.3,2566.7,3.89603]
[1730469703789,3.89521,2567.3,2566.6,3.89613]
[1730469703984,3.89552,2567.1,2566.5,3.89624]
[1730469704295,3.8959,2566.8,2566.1,3.89688]
[1730469704485,0.54813,2566.8,2566.1,3.89686]
[1730469704691,3.89634,2566.6,2566.0,3.89703]
[1730469704883,3.89634,2566.6,2565.6,1.8447]
[1730469705087,3.89634,2566.6,2565.9,7.79432]
[1730469705088,3.89637,2566.5,2565.9,7.79432]
[1730469705382,3.89634,2566.6,2565.9,3.89711]
[1730469705383,7.79265,2566.6,2565.9,3.89711]
[1730469705508,3.0,2566.9,2566.1,3.89692]
[1730469705716,3.0,2566.9,2566.3,3.89654]
[1730469705932,3.0,2567.1,2566.6,3.8961]
[1730469706133,3.0,2567.2,2566.6,3.8961]
[1730469706301,7.749055,2567.2,2566.6,3.8961]
[1730469706792,3.89546,2567.1,2566.6,3.8961]
[1730469707132,1.6419,2567.3,2566.0,7.79422]
[1730469707422,1.6419,2567.3,2566.7,3.89597]
[1730469707423,5.53713,2567.3,2566.7,3.89597]
[1730469707635,3.89536,2567.2,2566.6,3.89613]
[1730469708005,3.89559,2567.1,2565.9,1.973011]
[1730469708187,3.89582,2566.9,2566.3,3.8966]
[1730469708393,3.89582,2566.9,2566.2,3.89679]
[1730469708394,3.89591,2566.8,2566.2,3.89679]
[1730469708616,6.480344,2567.3,2565.9,3.89715]
[1730469708617,5.46586,2566.7,2565.9,3.89715]
[1730469708818,3.89627,2566.6,2566.0,3.89704]
[1730469709033,3.89638,2566.5,2565.8,3.89735]
[1730469709248,3.89652,2566.4,2565.7,3.89745]
[1730469709404,3.89673,2566.3,2565.7,3.89745]
[1730469709747,3.8969,2566.2,2565.5,3.89777]
[1730469710050,5.46667,2566.1,2565.5,3.89785]
[1730469710255,3.89713,2566.0,2565.3,3.89809]
[1730469710404,3.89713,2566.0,2564.9,1.6074]
[1730469710405,0.546683,2566.0,2564.9,1.6074]
[1730469710605,5.46674,2566.1,2565.4,3.89792]
[1730469710800,9.36379,2566.1,2565.5,3.89785]
[1730469711045,5.46674,2566.1,2565.5,3.89785]
[1730469711217,3.89711,2566.0,2565.0,3.89863]
[1730469711534,3.89737,2565.9,2565.3,3.89816]
[1730469712125,4.443811,2566.0,2565.4,3.89802]
[1730469712336,3.89713,2566.0,2565.5,3.89779]
[1730469712512,1.5697,2566.1,2565.5,3.89779]
[1730469712716,3.89677,2566.3,2565.6,1.5704]
[1730469712910,3.897,2566.1,2565.6,1.5704]
[1730469713115,7.79404,2566.1,2565.6,1.5704]
[1730469713318,3.89731,2565.9,2565.2,1.5704]
[1730469713609,3.89711,2566.0,2565.2,1.5704]
[1730469713803,3.89753,2565.8,2565.2,1.5704]
[1730469714028,3.89722,2566.0,2565.2,1.5704]
[1730469714844,3.779404,2566.1,2565.2,1.5704]
[1730469715143,3.0,2565.9,2565.2,1.5704]
[1730469715438,6.89722,2566.0,2565.2,1.5704]
[1730469715612,4.676374,2566.1,2565.2,1.5704]
[1730469715936,3.89712,2566.0,2565.2,1.5704]
[1730469716375,3.89712,2566.0,2565.3,3.89817]
[1730469716376,3.89726,2565.9,2565.3,3.89817]
[1730469716639,3.89712,2566.0,2565.2,1.5704]
[1730469716824,3.89742,2565.8,2565.2,1.5704]
[1730469717138,3.89723,2566.0,2565.4,3.89792]
[1730469718127,3.89731,2565.9,2565.3,3.89817]
[1730469718428,3.89742,2565.8,2565.3,3.89817]
[1730469718629,3.89728,2565.9,2565.3,7.79625]
[1730469718814,3.89728,2565.9,2565.2,5.46871]
[1730469719023,3.89728,2565.9,2565.3,3.89809]
[1730469719024,7.79466,2565.9,2565.3,3.89809]
[1730469719328,4.7546875,2565.9,2565.2,5.46872]
[1730469719531,4.7546875,2565.9,2565.2,1.5704]
[1730469719532,0.8574075,2565.9,2565.2,1.5704]
[1730469719839,3.89714,2566.0,2565.3,3.89817]
[1730469720140,3.89714,2566.0,2565.2,1.64835795]
[1730469720141,3.89715,2566.0,2565.2,1.64835795]
[1730469720398,3.89715,2566.0,2565.4,3.89791]
[1730469720649,1.6365,2566.3,2565.2,1.5704]
[1730469720814,3.8978,2565.6,2565.2,1.5704]
[1730469721004,3.89751,2565.8,2565.2,1.5704]
[1730469721212,3.89759,2565.7,2565.2,5.46864]
[1730469721757,4.6365,2566.3,2565.2,2.117264]
[1730469722049,3.89722,2566.0,2565.3,3.89807]
[1730469722220,1.6365,2566.3,2565.4,3.89794]
[1730469722544,3.89724,2566.0,2565.3,3.89817]
[1730469722743,3.89734,2565.9,2565.4,3.89802]
[1730469722956,3.89724,2566.0,2565.3,3.89817]
[1730469723156,3.89742,2565.8,2565.3,3.89805]
[1730469723307,3.89742,2565.8,2565.2,5.46865]
[1730469723654,3.89759,2565.7,2565.2,5.46865]
[1730469724013,3.89759,2565.7,2565.2,1.5704]
[1730469724238,3.89762,2565.7,2564.9,5.52105]
[1730469724560,1.6066,2565.6,2564.9,1.6224]
[1730469724736,3.89779,2565.6,2565.1,3.89839]
[1730469725144,4.287412,2565.7,2565.1,3.89839]